fUST/lending_fUST_20241119
["ID","MTS","AMOUNT","RATE_DAILY","PERIOD"]
[342624026,1732003636723,-500.0,0.0001453,2]
[342624027,1732003636744,-345.0079231,0.0001453,2]
[342624028,1732003636766,-500.0,0.0001453,2]
[342624029,1732003636786,-572.82839869,0.0001453,2]
[342624030,1732003636806,-500.0,0.0001453,2]
[342624031,1732003636826,-500.0,0.0001453,2]
[342624032,1732003636846,-500.0,0.0001453,2]
[342624033,1732003636867,-500.0,0.0001453,2]
[342624034,1732003636886,-500.0,0.0001453,2]
[342624035,1732003636908,-500.0,0.0001453,2]
[342624036,1732003636929,-500.0,0.0001453,2]
[342624037,1732003636950,-500.0,0.0001453,2]
[342624038,1732003636970,-500.0,0.0001453,2]
[342624039,1732003637105,-500.0,0.0001453,2]
[342624040,1732003637130,-500.0,0.0001453,2]
[342624041,1732003637156,-500.0,0.0001453,2]
[342624042,1732003637177,-500.0,0.0001453,2]
[342624043,1732003637198,-500.0,0.0001453,2]
[342624044,1732003637218,-500.0,0.0001453,2]
[342624045,1732003637244,-500.0,0.0001453,2]
[342624046,1732003637266,-500.0,0.0001453,2]
[342624047,1732003637286,-500.0,0.0001453,2]
[342624048,1732003637307,-500.0,0.0001453,2]
[342624049,1732003637327,-500.0,0.0001453,2]
[342624050,1732003637348,-500.0,0.0001453,2]
[342624051,1732003637372,-452.74642425,0.0001453,2]
[342624052,1732003637394,-500.0,0.0001453,2]
[342624053,1732003637416,-477.03876612,0.0001453,2]
[342624054,1732003637438,-500.0,0.0001453,2]
[342624055,1732003637458,-500.0,0.0001453,2]
[342624056,1732003637479,-500.0,0.0001453,2]
[342624057,1732003637500,-500.0,0.0001453,2]
[342624058,1732003637521,-500.0,0.0001453,2]
[342624059,1732003637541,-500.0,0.0001453,2]
[342624060,1732003637562,-500.0,0.0001453,2]
[342624061,1732003637582,-202.44944363,0.0001453,2]
[342624062,1732003637602,-500.0,0.0001453,2]
[342624063,1732003637626,-500.0,0.0001453,2]
[342624064,1732003637647,-500.0,0.0001453,2]
[342624065,1732003637670,-500.0,0.0001453,2]
[342624066,1732003637693,-500.0,0.0001453,2]
[342624067,1732003637715,-500.0,0.0001453,2]
[342624068,1732003637736,-500.0,0.0001453,2]
[342624069,1732003637760,-500.0,0.0001453,2]
[342624070,1732003637783,-500.0,0.0001453,2]
[342624071,1732003637810,-500.0,0.0001453,2]
[342624072,1732003637833,-500.0,0.0001453,2]
[342624073,1732003637855,-500.0,0.0001453,2]
[342624074,1732003637876,-500.0,0.0001453,2]
[342624075,1732003637898,-500.0,0.0001453,2]
[342624076,1732003637921,-500.0,0.0001453,2]
[342624077,1732003637943,-500.0,0.0001453,2]
[342624078,1732003637965,-449.34431364,0.0001453,2]
[342624079,1732003645243,-50.65568636,0.0001453,2]
[342624080,1732003645265,-500.0,0.0001453,2]
[342624081,1732003645286,-500.0,0.0001453,2]
[342624082,1732003645309,-500.0,0.0001453,2]
[342624083,1732003645331,-500.0,0.0001453,2]
[342624084,1732003645352,-500.0,0.0001453,2]
[342624085,1732003645374,-500.0,0.0001453,2]
[342624086,1732003645394,-500.0,0.0001453,2]
[342624087,1732003645417,-500.0,0.0001453,2]
[342624088,1732003645442,-500.0,0.0001453,2]
[342624089,1732003645463,-499.99999999,0.0001453,2]
[342624090,1732003645484,-24900.0,0.00014535,2]
[342624091,1732003645504,-2866.0124169,0.00014618,2]
[342624092,1732003645524,-1780.57943601,0.00014625,2]
[342624093,1732003645544,-864.4091611,0.00014726,2]
[342624094,1732003645565,-420.0,0.00014889,2]
[342624095,1732003645585,-643.2768318,0.00014935,2]
[342624096,1732003645605,-420.0,0.00014943,2]
[342624097,1732003645629,-810.299876,0.00015105,2]
[342624098,1732003645648,-1780.57943599,0.00015147,2]
[342624099,1732003645671,-1730.9612688,0.00015205,2]
[342624100,1732003645693,-1780.57943599,0.00015669,2]
[342624101,1732003645715,-1780.57943599,0.00016191,2]
[342624102,1732003645736,-196.02894019,0.00016197,2]
[342624103,1732003645757,-195.49115766,0.00016197,2]
[342624104,1732003645778,-198.91958658,0.00016197,2]
[342624105,1732003645799,-13811.24970356,0.00016198,2]
[342624106,1732003645819,-587.0,0.00016318,2]
[342624107,1732003645840,-587.0,0.00016437,2]
[342624108,1732003645859,-500.0,0.00016438,2]
[342624109,1732003645878,-500.0,0.00016438,2]
[342624110,1732003645898,-500.0,0.00016438,2]
[342624111,1732003645920,-500.0,0.00016438,2]
[342624112,1732003645939,-500.0,0.00016438,2]
[342624113,1732003645959,-500.0,0.00016438,2]
[342624114,1732003645979,-500.0,0.00016438,2]
[342624115,1732003645999,-500.0,0.00016438,2]
[342624116,1732003646020,-500.0,0.00016438,2]
[342624117,1732003646040,-500.0,0.00016438,2]
[342624118,1732003646060,-500.0,0.00016438,2]
[342624119,1732003646080,-500.0,0.00016438,2]
[342624120,1732003646104,-500.0,0.00016438,2]
[342624121,1732003646124,-500.0,0.00016438,2]
[342624122,1732003646144,-500.0,0.00016438,2]
[342624123,1732003646167,-520.39708557,0.00016438,2]
[342624124,1732003646187,-500.0,0.00016438,2]
[342624125,1732003646208,-500.0,0.00016438,2]
[342624126,1732003646229,-500.0,0.00016438,2]
[342624127,1732003646248,-500.0,0.00016438,2]
[342624128,1732003646270,-500.0,0.00016438,2]
[342624129,1732003646290,-5492.97521309,0.00016606,2]
[342624130,1732003646316,-246.031,0.00016635,2]
[342624131,1732003646338,-205.755,0.00016655,2]
[342624132,1732003646360,-250.0,0.00016655,2]
[342624133,1732003646383,-150.521,0.00016655,2]
[342624134,1732003646406,-250.0,0.00016655,2]
[342624135,1732003646428,-150.0,0.00016655,2]
[342624136,1732003646449,-530.0,0.00016655,2]
[342624137,1732003646469,-2384.0,0.00016655,2]
[342624138,1732003646490,-1110.0,0.00016655,2]
[342624139,1732003646510,-150.0,0.00016691,2]
[342624140,1732003646532,-330.0,0.00016713,2]
[342624141,1732003646552,-21886.67779799,0.00016713,2]
[342624142,1732003646654,-1000.0,0.00016713,2]
[342624143,1732003646675,-1780.57943599,0.00016713,2]
[342624144,1732003646697,-455.00247448,0.00016812,2]
[342624145,1732003646722,-150.01,0.00016812,2]
[342624146,1732003646744,-762.52770061,0.00016813,2]
[342624147,1732003646764,-762.52770061,0.00016813,2]
[342624148,1732003646787,-969352.33197474,0.00016813,2]
[342624153,1732003764084,-188.26,0.00010959,2]
[342624154,1732003764107,-188.26,0.00010959,2]
[342624155,1732003764128,-156.88,0.00010959,2]
[342624156,1732003764149,-784.43,0.00010959,2]
[342624229,1732003832095,-190.53,0.00016545,2]
[342624231,1732003832107,-131.85700704,0.00016554,2]
[342624307,1732003832853,-3915.63500227,0.00016554,2]
[342624309,1732003832865,-330.0,0.00016713,2]
[342624311,1732003832874,-1000.0,0.00016713,2]
[342624313,1732003832884,-836.23441185,0.00016713,2]
[342624315,1732003832893,-2406.35911688,0.00016713,2]
[342624318,1732003832906,-3845.79133053,0.00016713,2]
[342624592,1732003838270,-91.24328226,0.00016713,2]
[342624595,1732003838942,-10324.67032197,0.00016713,2]
[342624596,1732003838952,-300.0,0.00016811,2]
[342624597,1732003838962,-300.0,0.00016811,2]
[342624598,1732003838971,-500.0,0.00016812,2]
[342624599,1732003838980,-500.0,0.00016812,2]
[342624600,1732003838989,-500.0,0.00016812,2]
[342624601,1732003838999,-500.0,0.00016812,2]
[342624602,1732003839009,-500.0,0.00016812,2]
[342624603,1732003839019,-244.71660485,0.00016812,2]
[342624604,1732003839028,-164.11541846,0.00016812,2]
[342624605,1732003839037,-500.0,0.00016812,2]
[342624606,1732003839047,-168.93300951,0.00016812,2]
[342624607,1732003839056,-445.27464243,0.00016812,2]
[342624608,1732003839065,-104865.95208678,0.00016813,2]
[342624609,1732003839077,-51210.74507707,0.00016813,2]
[342624620,1732003840042,-31223.0,0.00016813,2]
[342624636,1732003843002,-5428.29693733,0.00016813,2]
[342624637,1732003843013,-698.25396342,0.00016813,2]
[342624651,1732003846123,-601.19598648,0.00016813,2]
[342624682,1732004826186,-400.0,0.00013833,2]
[342624683,1732004826207,-400.0,0.00013973,2]
[342624684,1732004826228,-300.0,0.00014735,2]
[342624685,1732004826252,-88.42322815,0.00014735,2]
[342624686,1732004853079,-232.45503012,0.00013695,2]
[342624709,1732004951085,-3341.99554233,0.000109,2]
[342624710,1732004951107,-190.65,0.00010959,2]
[342624736,1732005032274,-402.02232,0.00014588,2]
[342624737,1732005032385,-197.97768,0.00014588,2]
[342624738,1732005032395,-300.0,0.00014735,2]
[342624739,1732005032406,-300.0,0.00014735,2]
[342624740,1732005032416,-1342.49097521,0.00014736,2]
[342624741,1732005032429,-23557.50902479,0.00014736,2]
[342624742,1732005032439,-300.150227,0.0001488,2]
[342624743,1732005032450,-250.0,0.00015132,2]
[342624744,1732005032460,-3000.0,0.0001515,2]
[342624745,1732005032470,-271.075969,0.000158,2]
[342624746,1732005032480,-420.0,0.00016131,2]
[342624747,1732005032489,-233.0,0.00016208,2]
[342624748,1732005032501,-5492.97521309,0.0001653,2]
[342624749,1732005032511,-320.14711768,0.00016564,2]
[342624750,1732005032521,-530.0,0.00016583,2]
[342624751,1732005032531,-1110.0,0.00016583,2]
[342624752,1732005032540,-2384.0,0.00016583,2]
[342624753,1732005032549,-205.21695686,0.00016583,2]
[342624754,1732005032559,-196.825,0.00016597,2]
[342624755,1732005032569,-330.0,0.00016713,2]
[342624756,1732005032578,-150.0,0.000168,2]
[342624757,1732005032589,-160.58607138,0.00016812,2]
[342624758,1732005032598,-858248.45619646,0.00016813,2]
[342624788,1732005038432,-19114.13834232,0.00016813,2]
[342624956,1732005040186,-1976.7338584,0.00016813,2]
[342625261,1732005043319,-150.0,0.00016482,2]
[342625263,1732005043329,-9573.08946248,0.00016813,2]
[342625265,1732005043341,-3043.65659502,0.00016813,2]
[342625275,1732005043429,-61013.8754239,0.00016813,2]
[342625555,1732005046192,-3225.08860662,0.00016645,2]
[342625557,1732005046202,-7694.91119338,0.00016813,2]
[342625778,1732005498934,1200.0,0.0002,28]
[342625781,1732005897037,-896.8,0.00018202,7]
[342625782,1732005897072,-174.406936,0.00022,7]
[342625783,1732005897096,-174.406936,0.00022,7]
[342625784,1732005897119,-186.435454,0.00022,7]
[342625785,1732005897142,-186.435454,0.00022,7]
[342625786,1732005897164,-151.0,0.00022,7]
[342625787,1732005897186,-151.0,0.00022,7]
[342625788,1732005897208,-151.0,0.00022,7]
[342625789,1732005897233,-257.878828,0.00022,7]
[342625790,1732005897256,-27670.636392,0.00022,30]
[342625796,1732005941070,2764.32093786,0.00014,5]
[342625797,1732006028256,-299.85002142,0.00012482,2]
[342625798,1732006028276,-77.43357967,0.00012864,2]
[342625799,1732006063384,-3285.0,0.00012508,2]
[342625800,1732006087996,400.0,0.0002,30]
[342625808,1732006160137,-199.36289484,0.00010959,2]
[342625809,1732006170082,-23.11710516,0.00010959,2]
[342625811,1732006173120,-300.0,0.00012433,2]
[342625812,1732006173143,-300.0,0.00012433,2]
[342625813,1732006173165,-24900.0,0.00012434,2]
[342625814,1732006173189,-44757.3374603,0.00012508,2]
[342625815,1732006173213,-806.51396863,0.00012735,2]
[342625816,1732006173236,-806.51396863,0.00012864,2]
[342625817,1732006173257,-13469.49573133,0.00012948,2]
[342625839,1732006232996,-509.31870314,0.00012819,2]
[342625840,1732006233012,-1820.60384617,0.00012948,2]
[342625841,1732006233027,-208.18278453,0.00013598,2]
[342625842,1732006233043,-300.0,0.00013697,2]
[342625843,1732006233061,-300.0,0.00013697,2]
[342625844,1732006233077,-224.09821684,0.00013698,2]
[342625845,1732006233088,-500.33563402,0.000137,2]
[342625846,1732006233106,-500.0,0.000137,2]
[342625847,1732006233121,-500.0,0.000137,2]
[342625848,1732006233135,-401.52051919,0.00013842,2]
[342625849,1732006233149,-400.0,0.00013973,2]
[342625850,1732006233161,-500.0,0.00014,2]
[342625851,1732006233175,-500.0,0.00014,2]
[342625852,1732006233188,-500.14296328,0.00014,2]
[342625853,1732006233201,-500.0,0.00014,2]
[342625854,1732006233215,-500.0,0.00014,2]
[342625855,1732006233229,-500.0,0.00014,2]
[342625856,1732006233241,-527.12459206,0.00014,2]
[342625857,1732006233255,-500.0,0.00014,2]
[342625858,1732006233269,-563.93085503,0.00014,2]
[342625859,1732006233282,-500.0,0.00014,2]
[342625860,1732006233296,-500.0,0.00014,2]
[342625861,1732006233310,-208.18278447,0.00014043,2]
[342625862,1732006233323,-321.57617652,0.00014248,2]
[342625863,1732006233337,-208.18278447,0.00014488,2]
[342625864,1732006233351,-500.0,0.00014548,2]
[342625865,1732006233364,-500.0,0.00014548,2]
[342625866,1732006233378,-500.0,0.00014548,2]
[342625867,1732006233391,-401.52051916,0.0001456,2]
[342625868,1732006233404,-208.18278447,0.00014933,2]
[342625869,1732006233417,-420.0,0.0001501,2]
[342625870,1732006233430,-420.0,0.00015067,2]
[342625871,1732006233445,-401.52051916,0.00015278,2]
[342625872,1732006233458,-208.18278447,0.00015378,2]
[342625873,1732006233471,-208.18278447,0.00015823,2]
[342625874,1732006233485,-401.52051916,0.00015995,2]
[342625875,1732006233498,-208.18278447,0.00016268,2]
[342625876,1732006233511,-587.0,0.0001645,2]
[342625877,1732006233526,-150.0,0.00016482,2]
[342625878,1732006233539,-530.0,0.00016482,2]
[342625879,1732006233552,-1110.0,0.00016482,2]
[342625880,1732006233566,-2384.0,0.00016482,2]
[342625881,1732006233580,-150.0,0.00016482,2]
[342625882,1732006233594,-587.0,0.00016573,2]
[342625883,1732006233606,-190.509,0.00016583,2]
[342625884,1732006233616,-1000.0,0.00016613,2]
[342625885,1732006233625,-150.0,0.00016697,2]
[342625886,1732006233635,-330.0,0.00016713,2]
[342625887,1732006233775,-182682.59199798,0.00016713,2]
[342625888,1732006233798,-201373.70251357,0.00016713,2]
[342625889,1732006233808,-401.52051916,0.00016713,2]
[342625890,1732006233817,-208.18278447,0.00016713,2]
[342625891,1732006233827,-380.70253596,0.00016773,2]
[342625892,1732006233837,-3510.9362001,0.000168,2]
[342625893,1732006233846,-354.71720993,0.00016812,2]
[342625894,1732006233856,-224.09821684,0.00016813,2]
[342625895,1732006233865,-179965.5864351,0.00016813,2]
[342625914,1732006238564,-500.0,0.000137,2]
[342626401,1732006243407,-500.0,0.00013999,2]
[342626403,1732006243417,-500.0,0.00013999,2]
[342626406,1732006243426,-500.0,0.00013999,2]
[342626408,1732006243438,-500.0,0.00013999,2]
[342626410,1732006243450,-500.0,0.00013999,2]
[342626412,1732006243459,-500.0,0.00013999,2]
[342626414,1732006243468,-500.0,0.00013999,2]
[342626417,1732006243477,-500.0,0.00013999,2]
[342626419,1732006243486,-500.0,0.00013999,2]
[342626421,1732006243496,-500.0,0.00013999,2]
[342626423,1732006243505,-235.04121542,0.00013999,2]
[342626425,1732006243514,-179.45631612,0.00013999,2]
[342626427,1732006243526,-519.27466845,0.00013999,2]
[342626429,1732006243535,-500.0,0.00013999,2]
[342626431,1732006243544,-500.0,0.00013999,2]
[342626433,1732006243553,-500.0,0.00013999,2]
[342626435,1732006243562,-500.0,0.00013999,2]
[342626437,1732006243571,-500.0,0.00013999,2]
[342626439,1732006243580,-500.0,0.00013999,2]
[342626441,1732006243589,-500.0,0.00013999,2]
[342626443,1732006243598,-500.0,0.00013999,2]
[342626445,1732006243608,-500.0,0.00013999,2]
[342626447,1732006243617,-500.0,0.00013999,2]
[342626449,1732006243626,-500.0,0.00013999,2]
[342626451,1732006243634,-314.2352177,0.00013999,2]
[342626453,1732006243644,-500.0,0.00013999,2]
[342626455,1732006243653,-239.23723162,0.00013999,2]
[342626456,1732006243663,-500.0,0.00013999,2]
[342626458,1732006243672,-500.0,0.00013999,2]
[342626461,1732006243681,-342.09858392,0.00013999,2]
[342626463,1732006243691,-500.0,0.00013999,2]
[342626464,1732006243700,-500.0,0.00013999,2]
[342626466,1732006243710,-500.0,0.00013999,2]
[342626468,1732006243719,-72.14333575,0.00013999,2]
[342626471,1732006243734,-427.85666425,0.00013999,2]
[342626473,1732006243744,-500.0,0.00013999,2]
[342626475,1732006243753,-500.0,0.00013999,2]
[342626477,1732006243763,-500.0,0.00013999,2]
[342626479,1732006243774,-500.0,0.00013999,2]
[342626481,1732006243784,-500.0,0.00013999,2]
[342626483,1732006243793,-500.0,0.00013999,2]
[342626485,1732006243803,-500.0,0.00013999,2]
[342626488,1732006243813,-274.44653799,0.00013999,2]
[342626490,1732006243823,-500.0,0.00013999,2]
[342626491,1732006243832,-500.0,0.00013999,2]
[342626494,1732006243842,-500.0,0.00013999,2]
[342626496,1732006243852,-500.0,0.00013999,2]
[342626498,1732006243862,-500.0,0.00013999,2]
[342626500,1732006243872,-500.0,0.00013999,2]
[342626502,1732006243881,-500.0,0.00013999,2]
[342626504,1732006243891,-500.0,0.00013999,2]
[342626506,1732006243900,-500.0,0.00013999,2]
[342626508,1732006243910,-500.0,0.00013999,2]
[342626510,1732006243920,-500.0,0.00013999,2]
[342626512,1732006243930,-500.0,0.00013999,2]
[342626514,1732006243941,-500.0,0.00013999,2]
[342626516,1732006243950,-500.0,0.00013999,2]
[342626518,1732006243960,-500.0,0.00013999,2]
[342626520,1732006243969,-500.0,0.00013999,2]
[342626522,1732006243979,-500.0,0.00013999,2]
[342626524,1732006243988,-500.0,0.00013999,2]
[342626526,1732006243998,-500.0,0.00013999,2]
[342626528,1732006244007,-500.0,0.00013999,2]
[342626530,1732006244017,-500.0,0.00013999,2]
[342626532,1732006244028,-500.0,0.00013999,2]
[342626534,1732006244038,-500.0,0.00013999,2]
[342626536,1732006244047,-500.0,0.00013999,2]
[342626538,1732006244056,-500.0,0.00013999,2]
[342626540,1732006244066,-500.0,0.00013999,2]
[342626542,1732006244075,-500.0,0.00013999,2]
[342626544,1732006244085,-1000.0,0.00014248,2]
[342626546,1732006244094,-500.0,0.00016438,2]
[342626548,1732006244104,-500.0,0.00016438,2]
[342626550,1732006244113,-234.96659248,0.00016438,2]
[342626796,1732006246465,-265.03340752,0.00016438,2]
[342626798,1732006246475,-500.0,0.00016438,2]
[342626800,1732006246485,-500.0,0.00016438,2]
[342626803,1732006246495,-420.42993438,0.00016438,2]
[342626804,1732006246505,-150.0,0.00016482,2]
[342626806,1732006246515,-295.59767494,0.00016812,2]
[342626808,1732006246526,-15410.12791539,0.00016813,2]
[342626816,1732006246593,-1069.87166719,0.00016813,2]
[342627418,1732006480256,1056.67532116,5e-05,14]
[342627425,1732007234246,-319.61416743,0.00013898,2]
[342627426,1732007234268,-400.0,0.00013973,2]
[342627427,1732007234289,-183.310963,0.00014886,2]
[342627428,1732007234310,-1993.5347506,0.00015359,2]
[342627429,1732007234333,-365.19750903,0.00015642,2]
[342627766,1732007439067,-362.40637667,0.00015642,2]
[342627910,1732007440639,-5581.5611586,0.00015642,2]
[342627912,1732007440650,-300.0,0.00015999,2]
[342627915,1732007440659,-300.0,0.00015999,2]
[342627917,1732007440669,-5000.0,0.00016,2]
[342627919,1732007440678,-150.0,0.00016482,2]
[342627921,1732007440687,-150.0,0.00016482,2]
[342627923,1732007440696,-530.0,0.00016482,2]
[342627925,1732007440705,-1110.0,0.00016482,2]
[342627927,1732007440714,-884.68939098,0.00016482,2]
[342628233,1732007443676,-1499.31060902,0.00016482,2]
[342628234,1732007443685,-310.50735589,0.00016522,2]
[342628235,1732007443694,-3569.52303417,0.00016676,2]
[342628237,1732007443742,-3200.5699458,0.00016676,2]
[342628392,1732007460531,224.452,0.00026,60]
[342628414,1732008392140,-400.0,0.00013973,2]
[342628415,1732008392163,-500.0,0.00014426,2]
[342628416,1732008392184,-500.0,0.00015185,2]
[342628417,1732008392205,-500.0,0.00015985,2]
[342628418,1732008392229,-150.0,0.00016313,2]
[342628419,1732008392251,-2596.68937556,0.00016365,2]
[342628420,1732008392274,-300.0,0.00016468,2]
[342628421,1732008392298,-300.0,0.00016468,2]
[342628422,1732008392318,-150.0,0.00016469,2]
[342628423,1732008392338,-530.0,0.00016469,2]
[342628424,1732008392359,-1110.0,0.00016469,2]
[342628425,1732008392380,-2384.0,0.00016469,2]
[342628426,1732008392402,-152.407,0.00016477,2]
[342628427,1732008392424,-330.0,0.00016713,2]
[342628428,1732008392445,-177.46348744,0.00016713,2]
[342628437,1732008557113,-300.0,0.00010899,2]
[342628438,1732008557135,-14456.8732387,0.000109,2]
[342628439,1732008557157,-420.0,0.00011978,2]
[342628440,1732008557178,-587.0,0.00013164,2]
[342628441,1732008557199,-823.0,0.00014467,2]
[342628567,1732008634722,-822.53651256,0.00016713,2]
[342628568,1732008634732,-330.0,0.00016713,2]
[342628569,1732008634742,-150.0,0.000168,2]
[342628570,1732008634751,-300.0,0.00016811,2]
[342628571,1732008634761,-500.0,0.00016812,2]
[342628572,1732008634771,-248.80413685,0.00016812,2]
[342628573,1732008634781,-590.47057974,0.00016812,2]
[342628574,1732008634791,-500.0,0.00016812,2]
[342628575,1732008634800,-500.0,0.00016812,2]
[342628576,1732008634810,-500.0,0.00016812,2]
[342628577,1732008634819,-500.0,0.00016812,2]
[342628578,1732008634827,-363.82739311,0.00016812,2]
[342628579,1732008634840,-500.0,0.00016812,2]
[342628580,1732008634849,-500.0,0.00016812,2]
[342628581,1732008634858,-500.0,0.00016812,2]
[342628582,1732008634867,-500.0,0.00016812,2]
[342628583,1732008634876,-610.15149955,0.00016812,2]
[342628584,1732008634885,-500.0,0.00016812,2]
[342628585,1732008634895,-500.0,0.00016812,2]
[342628586,1732008634904,-500.0,0.00016812,2]
[342628587,1732008634913,-500.0,0.00016812,2]
[342628588,1732008634922,-500.0,0.00016812,2]
[342628589,1732008634931,-500.0,0.00016812,2]
[342628590,1732008634940,-500.0,0.00016812,2]
[342628591,1732008634949,-500.0,0.00016812,2]
[342628592,1732008634958,-500.0,0.00016812,2]
[342628593,1732008634967,-563.09711362,0.00016812,2]
[342628594,1732008634976,-500.0,0.00016812,2]
[342628595,1732008635073,-500.0,0.00016812,2]
[342628596,1732008635083,-500.0,0.00016812,2]
[342628597,1732008635095,-500.0,0.00016812,2]
[342628598,1732008635105,-500.0,0.00016812,2]
[342628599,1732008635114,-500.0,0.00016812,2]
[342628600,1732008635124,-500.0,0.00016812,2]
[342628601,1732008635133,-500.0,0.00016812,2]
[342628602,1732008635142,-500.0,0.00016812,2]
[342628603,1732008635152,-500.0,0.00016812,2]
[342628604,1732008635163,-500.0,0.00016812,2]
[342628605,1732008635174,-500.0,0.00016812,2]
[342628606,1732008635185,-500.0,0.00016812,2]
[342628607,1732008635196,-500.0,0.00016812,2]
[342628608,1732008635206,-500.0,0.00016812,2]
[342628609,1732008635216,-500.0,0.00016812,2]
[342628610,1732008635226,-295.59767494,0.00016812,2]
[342628611,1732008635235,-2720.1246884,0.00016813,2]
[342628612,1732008635244,-1944.41530076,0.00016813,2]
[342628613,1732008635253,-597260.97510347,0.00016813,2]
[342628614,1732008635269,-791.60249599,0.00016813,2]
[342628634,1732008638006,-33298.41699779,0.00016813,2]
[342628635,1732008638071,-124000.0000015,0.00016813,2]
[342628636,1732008638082,-20977.21018272,0.00016813,2]
[342628659,1732008642767,-3613.63584926,0.00016813,2]
[342628660,1732008642991,-1120.062207,0.00016813,2]
[342628807,1732009348318,3650.0,0.000219,30]
[342628808,1732009453217,190.53,0.00014,5]
[342628813,1732009652105,-400.0,0.00013973,2]
[342628814,1732009652128,-300.0,0.00016474,2]
[342628815,1732009652152,-300.0,0.00016474,2]
[342628816,1732009652173,-150.0,0.00016475,2]
[342628817,1732009652195,-487.27245268,0.00016475,2]
[342628833,1732009763096,-199.37,0.00010959,2]
[342628898,1732009835468,-167.56241529,0.00016,2]
[342628899,1732009835479,-300.0,0.00016474,2]
[342628900,1732009835488,-42.72754732,0.00016475,2]
[342628901,1732009835497,-17.51698476,0.00016475,2]
[342628902,1732009835509,-472.19305263,0.00016475,2]
[342628903,1732009835534,-271.76774,0.00016475,2]
[342628904,1732009835636,-181.91916141,0.00016475,2]
[342629448,1732009842915,-166.6030612,0.00016475,2]
[342629450,1732009842925,-2384.0,0.00016475,2]
[342629452,1732009842935,-150.0,0.00016475,2]
[342629454,1732009842944,-310.02536779,0.00016482,2]
[342629456,1732009842954,-330.0,0.00016713,2]
[342629458,1732009842963,-99.62114421,0.00016713,2]
[342629460,1732009842977,-302.0,0.00016713,2]
[342629463,1732009842989,-3423.91254572,0.00016713,2]
[342629465,1732009843000,-221.95831938,0.00016713,2]
[342629467,1732009843009,-30.29732454,0.00016713,2]
[342629698,1732009846090,-491.35975219,0.00016713,2]
[342629699,1732009846102,-478.34292327,0.00016713,2]
[342629700,1732009846217,-155.51481417,0.00016713,2]
[342629701,1732009846226,-312.20029991,0.00016713,2]
[342629702,1732009846236,-236.47813995,0.00016812,2]
[342629703,1732009846246,-500.0,0.00016812,2]
[342629704,1732009846255,-500.0,0.00016812,2]
[342629705,1732009846264,-500.0,0.00016812,2]
[342629706,1732009846273,-500.0,0.00016812,2]
[342629707,1732009846283,-200.0,0.00016812,2]
[342629708,1732009846293,-500.0,0.00016812,2]
[342629709,1732009846305,-572.82839869,0.00016812,2]
[342629710,1732009846315,-500.0,0.00016812,2]
[342629711,1732009846324,-500.0,0.00016812,2]
[342629712,1732009846334,-500.0,0.00016812,2]
[342629713,1732009846343,-500.0,0.00016812,2]
[342629714,1732009846353,-500.0,0.00016812,2]
[342629715,1732009846362,-500.0,0.00016812,2]
[342629716,1732009846372,-500.0,0.00016812,2]
[342629717,1732009846381,-250.00000001,0.00016812,2]
[342629718,1732009846391,-500.0,0.00016812,2]
[342629719,1732009846401,-250.0,0.00016812,2]
[342629720,1732009846411,-500.0,0.00016812,2]